bitfinex/quotes_ETHUSD_20250807
["timestamp","ask_amount","ask_price","bid_price","bid_amount"]
[1754589574562,1e-08,3832.9,3832.8,7.04785865]
[1754589574902,1e-08,3832.9,3832.8,9.73173793]
[1754589575563,1e-08,3832.9,3832.8,9.43683793]
[1754589575990,1e-08,3832.9,3832.8,9.73173793]
[1754589578573,1e-08,3832.9,3832.8,9.83621393]
[1754589580322,0.002,3833.3,3833.2,3.15878639]
[1754589580323,1e-08,3833.3,3833.2,3.15878639]
[1754589580619,1e-08,3833.3,3833.2,21.46036965]
[1754589581120,1e-08,3833.3,3833.2,21.92386965]
[1754589581782,1e-08,3833.3,3833.2,22.21876965]
[1754589582111,1e-08,3833.3,3833.2,21.92386965]
[1754589583314,1e-08,3833.3,3833.2,21.46036965]
[1754589583684,0.94730001,3833.3,3833.2,21.46036965]
[1754589585081,0.94730001,3833.3,3833.2,6.61596409]
[1754589585282,0.94730001,3833.3,3833.2,5.73918639]
[1754589589484,0.94730001,3833.3,3833.2,0.1304]
[1754589590013,0.94730001,3833.3,3833.2,2.73918639]
[1754589590220,0.94730001,3833.3,3833.2,0.1304]
[1754589590530,0.94730001,3833.3,3832.8,2.60905094]
[1754589590531,0.94730001,3833.3,3833.1,3.0]
[1754589590834,0.9473,3833.2,3833.0,0.1304]
[1754589591332,0.9473,3833.1,3833.0,0.1304]
[1754589592124,0.9473,3833.1,3832.7,2.74508842]
[1754589592468,0.9473,3833.0,3832.7,2.87548842]
[1754589592581,0.13040001,3833.3,3832.7,2.87548842]
[1754589592784,0.9473,3832.9,3832.7,2.87548842]
[1754589593099,0.9473,3832.8,3832.7,2.87548842]
[1754589593501,0.9473,3832.8,3832.7,2.73948375]
[1754589594225,0.9473,3832.8,3832.7,2.87554702]
[1754589594602,0.13040001,3833.3,3833.0,2.60889357]
[1754589595028,1e-08,3833.3,3833.0,2.60889357]
[1754589595330,1e-08,3833.3,3833.0,14.29340556]
[1754589595622,1e-08,3833.3,3833.2,2.73918639]
[1754589596450,0.48390001,3833.3,3833.2,2.73918639]
[1754589596652,0.94730001,3833.3,3833.2,2.73918639]
[1754589597636,1e-08,3833.3,3833.2,2.73918639]
[1754589597822,1e-08,3833.3,3833.2,5.73918639]
[1754589598030,1e-08,3833.3,3833.2,8.42306567]
[1754589599257,0.88930001,3833.3,3833.2,8.42306567]
[1754589599970,0.88930001,3833.3,3833.2,3.1304]
[1754589600105,0.88930001,3833.3,3833.2,5.60878639]
[1754589600310,0.88930001,3833.3,3833.1,0.001]
[1754589600521,0.8893,3833.2,3833.1,0.001]
[1754589600918,1e-08,3833.3,3833.1,12.91826001]
[1754589601145,1e-08,3833.3,3833.2,2.60878639]
[1754589601662,1e-08,3833.3,3833.2,6.15878639]
[1754589601864,1e-08,3833.3,3833.2,6.62568639]
[1754589602347,0.88930001,3833.3,3833.2,10.14278639]
[1754589602549,0.88930001,3833.3,3833.2,2.60878639]
[1754589602720,0.88930001,3833.3,3833.1,0.1314]
[1754589602921,0.8893,3833.2,3833.1,0.001]
[1754589603442,3.49808639,3833.2,3833.1,0.001]
[1754589603646,18.37274742,3833.2,3833.1,0.001]
[1754589603857,15.76396103,3833.2,3833.1,0.001]
[1754589604744,0.8893,3833.2,3833.1,0.001]
[1754589605455,1.13341191,3833.2,3833.1,0.001]
[1754589605843,15.63341191,3833.2,3833.1,0.001]
[1754589606160,15.76381191,3833.2,3833.1,0.001]
[1754589606358,1.0197,3833.2,3833.1,0.001]
[1754589606926,1.52007,3833.2,3833.1,0.001]
[1754589607257,1.76412267,3833.2,3833.1,0.001]
[1754589607490,1.52007,3833.2,3833.1,0.001]
[1754589608657,4.37284949,3833.2,3833.1,0.001]
[1754589608861,1.7640631,3833.2,3833.1,0.001]
[1754589609226,0.8893,3833.2,3833.1,0.001]
[1754589609424,3.98400001,3833.3,3833.1,0.001]
[1754589609654,0.8893,3833.2,3833.1,0.001]
[1754589610456,0.8893,3833.2,3833.1,2.60985445]
[1754589610662,0.8893,3833.2,3833.1,0.001]
[1754589611160,1e-08,3833.3,3833.1,2.60985175]
[1754589611371,1e-08,3833.3,3833.2,3.48011156]
[1754589611532,1e-08,3833.3,3833.2,3.01321156]
[1754589611731,0.45560001,3833.3,3833.2,3.01321156]
[1754589611933,0.88930001,3833.3,3833.2,3.01321156]
[1754589612134,1e-08,3833.3,3833.2,2.73918639]
[1754589615803,1e-08,3833.3,3833.2,0.1304]
[1754589615934,0.88930001,3833.3,3833.2,0.1304]
[1754589616576,0.88930001,3833.3,3833.2,2.73918639]
[1754589617171,0.88930001,3833.3,3833.2,0.1304]
[1754589617539,0.88930001,3833.3,3833.1,0.001]
[1754589617742,0.43370001,3833.3,3833.2,2.60878639]
[1754589618083,0.43370001,3833.3,3833.1,2.60983231]
[1754589618277,1e-08,3833.3,3833.2,2.60878639]
[1754589618485,1e-08,3833.3,3833.1,0.001]
[1754589618972,1e-08,3833.3,3833.1,2.60985445]
[1754589618973,0.8893,3833.2,3833.1,2.60985445]
[1754589619373,1e-08,3833.3,3833.2,2.60878639]
[1754589619979,0.45560001,3833.3,3833.1,2.60984238]
[1754589620341,0.88930001,3833.3,3833.1,0.001]
[1754589620573,0.8893,3833.2,3833.1,0.001]
[1754589620777,0.8893,3833.2,3833.1,2.60985445]
[1754589621694,1e-08,3833.3,3833.2,2.60878639]
[1754589622096,1e-08,3833.3,3833.1,0.001]
[1754589622465,1e-08,3833.3,3833.2,2.60878639]
[1754589622667,1e-08,3833.3,3833.2,12.91719195]
[1754589622979,1e-08,3833.3,3833.2,4.29189647]
[1754589623769,1e-08,3833.3,3833.2,0.1304]
[1754589623980,1e-08,3833.3,3833.2,2.73918639]
[1754589625186,1e-08,3833.3,3833.2,3.75608639]
[1754589625346,1e-08,3833.3,3833.2,8.03398639]
[1754589625752,1e-08,3833.3,3833.2,7.73908639]
[1754589626382,1e-08,3833.3,3833.2,10.36571342]
[1754589628488,1e-08,3833.3,3833.2,6.38271342]
[1754589628680,1e-08,3833.3,3833.2,10.36571342]
[1754589628883,1e-08,3833.3,3833.2,7.75692703]
[1754589629087,1e-08,3833.3,3833.2,2.75702703]
[1754589629258,0.92570001,3833.3,3833.1,0.001]
[1754589629458,0.9257,3833.2,3833.1,0.001]
[1754589630068,3.53448639,3833.2,3833.1,0.001]
[1754589630360,0.9257,3833.2,3833.1,0.001]
[1754589631297,3.53448639,3833.2,3833.1,0.001]
[1754589631484,0.9257,3833.2,3833.1,0.001]
[1754589632180,3.53448639,3833.2,3833.1,0.001]
[1754589632796,4.54710558,3833.2,3833.1,0.001]
[1754589633090,4.92184242,3833.2,3833.1,0.001]
[1754589633665,4.67750558,3833.2,3833.1,0.001]
[1754589634184,1.38734765,3833.2,3833.1,0.001]
[1754589634390,3.66488639,3833.2,3833.1,0.001]
[1754589634579,18.16488639,3833.2,3833.1,0.001]
[1754589634778,18.40922629,3833.2,3833.1,0.001]
[1754589635993,15.8004399,3833.2,3833.1,0.001]
[1754589636192,18.40922629,3833.2,3833.1,0.001]
[1754589637106,18.97212205,3833.2,3833.1,0.001]
[1754589637481,18.72778215,3833.2,3833.1,0.001]
[1754589637683,18.9721196,3833.2,3833.1,0.001]
[1754589637887,21.9721196,3833.2,3833.1,0.001]
[1754589638693,21.9721196,3833.2,3833.1,1e-08]
[1754589640712,21.97169269,3833.2,3833.1,1e-08]
[1754589640912,22.1036379,3833.2,3833.1,1e-08]
[1754589641309,22.1036379,3833.2,3832.7,1e-08]
[1754589641310,2.60905865,3832.8,3832.7,1e-08]
[1754589641513,21.56168049,3832.8,3832.7,1e-08]
[1754589641812,22.58516726,3832.8,3832.7,1e-08]
[1754589642175,37.08516726,3832.8,3832.7,1e-08]
[1754589642380,2.6091948,3832.6,3832.5,1e-08]
[1754589642588,8.78471762,3832.6,3832.5,1e-08]
[1754589642789,9.67780269,3832.6,3832.5,1e-08]
[1754589643027,24.41276369,3832.6,3832.5,1e-08]
[1754589644628,24.30820269,3832.6,3832.5,1e-08]
[1754589646418,27.06429215,3832.6,3832.5,1e-08]
[1754589646717,27.307552,3832.6,3832.5,1e-08]
[1754589647604,24.307552,3832.6,3832.5,1e-08]
[1754589648189,22.81895624,3832.6,3832.5,1e-08]
[1754589649127,18.85665985,3832.6,3832.5,1e-08]
[1754589649437,18.6134,3832.6,3832.5,0.48340001]
[1754589649922,18.6134,3832.6,3832.5,1e-08]
[1754589650122,22.1482948,3832.6,3832.5,1e-08]
[1754589651290,21.2225948,3832.6,3832.5,1e-08]
[1754589651488,18.6134,3832.6,3832.5,1e-08]
[1754589651693,18.6134,3832.6,3832.5,0.48340001]
[1754589652434,14.5,3832.6,3832.5,3.38756289]
[1754589652592,3.983,3832.6,3832.5,3.38756289]
[1754589654086,3.983,3832.6,3832.5,0.77830001]
[1754589654289,3.983,3832.6,3832.5,0.48340001]
[1754589655017,3.983,3832.6,3832.5,1e-08]
[1754589655532,4.1134,3832.6,3832.5,1e-08]
[1754589658135,4.1134,3832.6,3832.5,2.60926289]
[1754589658307,0.1304,3833.1,3832.6,2.60915127]
[1754589658518,0.4587,3833.6,3832.7,0.4817]
[1754589658519,3.983,3833.0,3832.7,0.4817]
[1754589658700,3.983,3833.0,3832.9,2.60898794]
[1754589658902,3.983,3833.0,3832.9,3.09068794]
[1754589659125,3.983,3833.0,3832.9,3.38558794]
[1754589659434,3.983,3833.0,3832.9,0.4817]
[1754589659648,3.983,3833.0,3832.6,2.60918464]
[1754589660133,3.983,3833.0,3832.5,2.73963586]
[1754589660339,4.4397,3833.0,3832.5,1e-08]
[1754589660535,0.9339,3832.9,3832.5,1e-08]
[1754589660833,3.983,3832.8,3832.5,1e-08]
[1754589661033,5.66947599,3832.8,3832.5,1e-08]
[1754589661196,0.1304,3832.6,3832.5,1e-08]
[1754589661397,4.1124,3832.6,3832.5,1e-08]
[1754589661841,4.5896,3832.6,3832.5,1e-08]
[1754589663125,5.0463,3832.6,3832.5,1e-08]
[1754589663437,5.88708771,3832.6,3832.5,1e-08]
[1754589664004,8.74010474,3832.6,3832.5,1e-08]
[1754589664643,12.30216212,3832.6,3832.5,1e-08]
[1754589664958,26.80216212,3832.6,3832.5,1e-08]
[1754589667715,22.82016212,3832.6,3832.5,1e-08]
[1754589667916,18.88626212,3832.6,3832.5,1e-08]
[1754589668111,19.41827961,3832.6,3832.5,1e-08]
[1754589668525,22.02747441,3832.6,3832.5,1e-08]
[1754589668853,22.96137441,3832.6,3832.5,1e-08]
[1754589669811,25.96137441,3832.6,3832.5,1e-08]
[1754589672364,25.71755218,3832.6,3832.5,1e-08]
[1754589672586,25.96154343,3832.6,3832.5,1e-08]
[1754589673266,5.60933096,3832.4,3832.3,1e-08]
[1754589673439,10.39837959,3832.4,3832.3,1e-08]
[1754589673633,10.52877959,3832.4,3832.3,1e-08]
[1754589673834,25.96267959,3832.4,3832.3,1e-08]
[1754589675172,26.51267959,3832.4,3832.3,1e-08]
[1754589675371,3.55,3831.7,3831.1,0.001]
[1754589675538,18.79212213,3831.2,3831.1,0.001]
[1754589675733,23.58117076,3831.2,3831.1,0.001]
[1754589675932,38.55837076,3831.2,3831.1,0.001]
[1754589676146,39.01507076,3831.2,3831.1,0.001]
[1754589678856,25.96349688,3831.2,3831.1,0.001]
[1754589679058,25.02959688,3831.2,3831.1,0.001]
[1754589679379,15.41063663,3831.2,3831.1,0.001]
[1754589679581,14.74399125,3831.2,3831.1,0.7776]
[1754589679754,18.72699125,3831.2,3831.1,0.7776]
[1754589680160,18.483,3831.2,3831.1,0.7776]
[1754589680359,3.983,3831.2,3831.1,0.7776]
[1754589680880,14.5,3831.5,3831.2,2.61010803]
[1754589681081,6.268,3831.6,3831.3,3.38668012]
[1754589681082,3.983,3831.4,3831.3,3.38668012]
[1754589681285,0.24325949,3831.4,3831.3,3.38668012]
[1754589681580,14.7432008,3832.3,3831.7,2.60977154]
[1754589681877,4.2262008,3832.2,3831.8,0.4817]
[1754589682080,0.2432008,3832.1,3831.7,2.60977154]
[1754589682278,3.983,3832.0,3831.9,0.4817]
[1754589682480,4.2262008,3832.0,3831.9,0.7766]
[1754589682882,3.983,3832.0,3831.6,0.7766]
[1754589683186,3.983,3832.0,3831.6,0.4817]
[1754589683385,3.983,3832.0,3831.3,0.2949]
[1754589683386,6.59262131,3832.0,3831.3,2.61002204]
[1754589683758,3.983,3832.0,3831.3,2.61002204]
[1754589683959,3.983,3832.0,3831.2,0.4817]
[1754589684196,2.64233933,3831.9,3831.2,0.4817]
[1754589684377,3.983,3831.8,3831.2,3.09184673]
[1754589684686,17.10940417,3832.3,3831.5,0.001]
[1754589684885,4.22628146,3832.2,3831.6,0.4817]
[1754589685185,3.983,3832.2,3831.7,2.60980765]
[1754589685374,3.983,3832.2,3831.8,0.7766]
[1754589685761,3.983,3832.2,3831.8,0.4817]
[1754589686363,3.983,3832.2,3831.5,0.4827]
[1754589686567,3.983,3832.2,3831.6,2.60987576]
[1754589686800,3.983,3832.2,3831.7,2.6098049]
[1754589687097,3.984,3832.1,3831.8,0.4817]
[1754589687269,4.01661919,3832.1,3831.5,2.61093392]
[1754589687469,3.984,3832.1,3831.5,2.61093392]
[1754589687969,3.984,3832.1,3831.5,0.001]
[1754589688156,3.984,3832.1,3831.6,2.60986598]
[1754589688489,14.5,3832.0,3831.6,2.60986598]
[1754589688702,3.984,3831.9,3831.6,3.09686598]
[1754589688989,3.984,3831.9,3831.5,2.61092084]
[1754589689355,14.6304,3831.8,3831.6,2.60986142]
[1754589689557,3.983,3831.7,3831.6,2.60986142]
[1754589691182,3.983,3831.7,3831.5,2.61092131]
[1754589691379,3.983,3831.7,3831.5,0.001]
[1754589691584,0.96502344,3831.6,3831.5,0.001]
[1754589691892,3.67267576,3831.6,3831.5,0.001]
[1754589692084,1.0628,3831.6,3831.5,0.001]
[1754589692283,3.67267576,3831.6,3831.5,0.001]
[1754589692661,3.7052992,3831.6,3831.5,0.001]
[1754589692862,3.7052992,3831.6,3831.5,1e-08]
[1754589692863,17.31413182,3831.6,3831.5,1e-08]
[1754589693171,5.61014825,3831.2,3831.1,0.001]
[1754589693376,24.47124865,3831.2,3831.1,0.001]
[1754589693596,27.26498865,3831.2,3831.1,0.001]
[1754589694492,27.82639312,3831.2,3831.1,0.001]
[1754589695296,23.70899312,3831.2,3831.1,0.001]
[1754589695511,27.82639312,3831.2,3831.1,0.001]
[1754589695886,27.82640239,3831.2,3831.1,0.001]
[1754589697116,2.61062524,3830.5,3830.4,0.001]
[1754589697322,7.15489325,3830.5,3830.4,0.001]
[1754589697674,22.58729325,3830.5,3830.4,0.001]
[1754589697871,22.71769325,3830.5,3830.4,0.001]
[1754589698715,21.78629325,3830.5,3830.4,0.001]
[1754589698872,21.22902524,3830.5,3830.4,0.001]
[1754589699078,21.4726046,3830.5,3830.4,0.001]
[1754589699519,22.4050046,3830.5,3830.4,0.001]
[1754589700173,21.4726046,3830.5,3830.4,0.001]
[1754589700417,21.9519046,3830.5,3830.4,0.001]
[1754589700716,22.4050046,3830.5,3830.4,0.001]
[1754589701633,21.4726046,3830.5,3830.4,0.001]
[1754589701833,21.47256759,3830.5,3830.4,0.001]
[1754589702140,22.40496759,3830.5,3830.4,0.001]
[1754589703198,2.61096605,3830.0,3829.9,0.001]
[1754589703409,9.84249444,3830.0,3829.9,0.001]
[1754589703634,10.77489444,3830.0,3829.9,0.001]
[1754589704128,10.90529444,3830.0,3829.9,0.001]
[1754589705534,11.46607791,3830.0,3829.9,0.001]
[1754589705720,12.87377418,3830.0,3829.9,0.001]
[1754589707828,12.87345545,3830.0,3829.9,0.001]
[1754589708023,8.88545545,3830.0,3829.9,0.001]
[1754589708331,12.87437151,3830.0,3829.9,0.001]
[1754589709346,11.94197151,3830.0,3829.9,0.001]
[1754589709628,12.87437151,3830.0,3829.9,0.001]
[1754589710419,11.94197151,3830.0,3829.9,0.001]
[1754589710624,11.38118804,3830.0,3829.9,0.001]
[1754589711921,12.31358804,3830.0,3829.9,0.001]
[1754589712434,7.39218804,3830.0,3829.9,0.001]
[1754589712769,6.97149177,3830.0,3829.9,0.001]
[1754589713260,6.97149177,3830.0,3829.9,0.488]
[1754589713261,0.1304,3830.0,3829.9,0.488]
[1754589713443,4.1184,3830.0,3829.9,0.488]
[1754589713622,4.1184,3830.0,3829.9,0.7829]
[1754589714133,4.1184,3830.0,3829.9,0.488]
[1754589714362,6.72936605,3830.0,3829.9,0.488]
[1754589714657,4.1184,3830.0,3829.9,0.488]
[1754589715229,6.72936605,3830.0,3829.9,0.001]
[1754589715555,6.97233766,3830.0,3829.9,0.001]
[1754589715769,6.72936605,3830.0,3829.9,0.001]
[1754589715971,0.1304,3830.0,3829.9,0.001]
[1754589716123,4.1184,3830.0,3829.9,0.488]
[1754589716320,0.3734633,3830.0,3829.9,0.488]
[1754589716558,4.1174,3830.0,3829.9,0.488]
[1754589716746,6.97142935,3830.0,3829.9,0.001]
[1754589717155,6.72836605,3830.0,3829.9,0.001]
[1754589717362,6.9715156,3830.0,3829.9,0.001]
[1754589717961,7.4246156,3830.0,3829.9,0.001]
[1754589718146,8.90946213,3830.0,3829.9,0.001]
[1754589720174,9.47064022,3830.0,3829.9,0.001]
[1754589720526,9.46964022,3830.0,3829.9,0.001]
[1754589721865,8.53524022,3830.0,3829.9,0.001]
[1754589722157,8.96534022,3830.0,3829.9,0.001]
[1754589722361,9.44664022,3830.0,3829.9,0.001]
[1754589723443,8.53524022,3830.0,3829.9,0.001]
[1754589723638,9.44664022,3830.0,3829.9,0.001]
[1754589724671,9.44770938,3830.0,3829.9,0.001]
[1754589725654,12.44770938,3830.0,3829.9,0.001]
[1754589726669,12.99770938,3830.0,3829.9,1e-08]
[1754589727532,5.61151154,3829.2,3829.1,0.001]
[1754589727873,11.22640318,3829.2,3829.1,0.001]
[1754589728165,12.13780318,3829.2,3829.1,0.001]
[1754589728365,12.13780318,3829.2,3828.7,0.001]
[1754589728366,5.61178437,3828.8,3828.7,0.001]
[1754589728546,23.45749737,3828.8,3828.7,0.001]
[1754589728741,24.49929737,3828.8,3828.7,0.001]
[1754589729071,24.49929737,3828.8,3827.3,0.1362629]
[1754589729072,2.61268553,3827.5,3827.3,0.1362629]
[1754589729236,4.1184,3827.4,3827.3,0.1362629]
[1754589729440,4.1184,3827.4,3827.3,0.6076629]
[1754589729863,3.988,3827.4,3827.3,0.9025629]
[1754589730171,3.988,3827.4,3827.3,3.86690322]
[1754589730337,0.1304,3827.9,3827.4,2.61273006]
[1754589730535,3.988,3827.8,3827.5,2.61265477]
[1754589730766,3.988,3827.8,3827.6,0.7663]
[1754589730968,0.1304,3827.9,3827.6,1.42729673]
[1754589731267,3.99,3827.8,3827.7,3.37883494]
[1754589731672,3.99,3827.8,3827.7,0.7663]
[1754589733071,4.1204,3827.8,3827.5,0.4714]
[1754589733280,0.03265668,3827.7,3827.3,0.1362629]
[1754589733440,0.1304,3827.4,3827.3,0.1362629]
[1754589733770,18.6214,3827.4,3827.3,0.6076629]
[1754589733976,18.6214,3827.4,3827.3,0.9025629]
[1754589734362,18.6214,3827.4,3827.3,3.51537088]
[1754589734877,18.491,3827.4,3827.3,4.1282021]
[1754589735271,0.1304,3827.8,3827.7,2.61253494]
[1754589735468,4.1224,3827.8,3827.7,2.61253494]
[1754589735668,18.492,3827.8,3827.7,3.37883494]
[1754589735903,18.492,3827.8,3827.7,1.36544169]
[1754589736111,18.492,3827.8,3827.7,0.7663]
[1754589736269,3.992,3827.8,3827.7,0.7663]
[1754589736474,0.1304,3827.9,3827.7,0.4714]
[1754589736683,3.992,3827.8,3827.6,2.61258475]
[1754589737006,3.992,3827.8,3827.6,0.62693098]
[1754589737203,3.992,3827.8,3827.4,0.2949]
[1754589737370,3.992,3827.8,3827.7,0.4714]
[1754589737571,3.992,3827.8,3827.7,3.08393494]
[1754589737871,2.61253494,3827.7,3827.3,0.1362629]
[1754589738071,3.991,3827.6,3827.3,0.1362629]
[1754589738883,0.4301,3828.0,3827.3,0.1362629]
[1754589739116,3.993,3827.9,3827.4,0.4714]
[1754589739305,3.993,3827.8,3827.5,2.61267145]
[1754589739607,14.5,3828.2,3827.6,3.08400319]
[1754589739608,3.993,3827.7,3827.6,3.08400319]
[1754589739907,3.993,3827.7,3827.6,0.4714]
[1754589740376,3.993,3827.7,3827.6,3.08400319]
[1754589740774,3.993,3827.7,3827.6,3.37890319]
[1754589741776,14.5,3828.2,3827.7,2.61251757]
[1754589742111,4.23717812,3828.1,3827.6,2.61258009]
[1754589742313,4.02565327,3828.1,3827.5,3.22545942]
[1754589742512,4.02565327,3828.1,3827.6,2.61257001]
[1754589742680,3.993,3828.1,3827.6,2.61260319]
[1754589743102,3.993,3828.1,3827.5,0.61280398]
[1754589743302,0.9114,3828.0,3827.5,2.61267074]
[1754589744038,0.9114,3827.9,3827.5,2.61267074]
[1754589744237,3.992,3827.8,3827.5,2.61267074]
[1754589744536,3.992,3827.8,3827.3,2.74901823]
[1754589745042,4.9034,3827.8,3827.3,2.74901823]
[1754589745239,4.9034,3827.8,3827.3,0.1362629]
[1754589745413,0.9114,3827.7,3827.3,0.1362629]
[1754589745612,2.61267232,3827.5,3827.3,0.1362629]
[1754589745812,2.61285778,3827.3,3826.9,0.001]
[1754589746112,4.9034,3827.4,3826.9,0.001]
[1754589746423,14.5,3827.3,3826.9,0.001]
[1754589746734,15.4114,3827.3,3826.9,0.001]
[1754589746951,2.6130128,3827.0,3826.9,0.001]
[1754589747151,2.61314936,3826.8,3826.5,0.001]
[1754589747299,2.61328594,3826.6,3826.5,0.001]
[1754589747499,17.11328594,3826.6,3826.5,0.001]
[1754589747700,18.02468594,3826.6,3826.5,0.001]
[1754589747915,18.90665936,3826.6,3826.5,0.001]
[1754589748516,16.29337342,3826.6,3826.5,0.001]
[1754589749160,14.6304,3826.6,3826.5,0.001]
[1754589749362,18.6254,3826.6,3826.5,0.001]
[1754589749515,18.495,3826.6,3826.5,0.001]
[1754589750144,18.495,3826.6,3826.5,2.61435424]
[1754589750332,3.995,3826.6,3826.5,3.08305424]
[1754589750537,3.995,3826.6,3826.5,3.65270461]
[1754589750836,3.995,3826.6,3826.5,0.57065037]
[1754589751225,14.5,3826.7,3826.5,0.001]
[1754589751422,3.996,3826.6,3826.5,0.001]
[1754589752129,3.996,3826.6,3826.5,2.61435424]
[1754589752556,3.996,3826.6,3826.5,3.08305424]
[1754589752745,3.996,3826.6,3826.5,0.4697]
[1754589752943,3.996,3826.6,3826.5,0.001]
[1754589754025,14.5,3826.7,3826.5,0.001]
[1754589754228,14.5,3826.7,3826.6,2.61328594]
[1754589754554,3.995,3826.7,3826.6,4.05728594]
[1754589754966,3.995,3826.7,3826.6,3.76238594]
[1754589755338,3.995,3826.7,3826.6,4.05728594]
[1754589755537,3.995,3826.7,3826.6,7.72445494]
[1754589755857,14.5,3827.3,3827.2,2.61287625]
[1754589756056,18.496,3827.3,3827.2,2.61287625]
[1754589756352,3.996,3827.3,3827.1,2.74333344]
[1754589756554,3.996,3827.3,3827.2,2.61287625]
[1754589756753,3.996,3827.3,3827.2,3.14849722]
[1754589756954,3.996,3827.3,3827.2,0.53562097]
[1754589757163,3.996,3827.3,3827.2,3.14849722]
[1754589757656,3.996,3827.3,3827.2,3.61719722]
[1754589758250,3.996,3827.3,3827.2,3.14849722]
[1754589758785,2.61231449,3828.1,3827.2,3.14849722]
[1754589758786,0.1304,3828.2,3828.0,2.61227227]
[1754589759089,3.996,3828.1,3828.0,3.08103019]
[1754589759299,14.5,3828.6,3828.0,1.05108286]
[1754589759481,3.997,3828.5,3828.2,0.1304]
[1754589759787,4.895,3828.5,3828.1,0.1304]
[1754589760093,0.898,3828.4,3827.4,0.55]
[1754589760254,0.1304,3828.3,3827.8,2.61244626]
[1754589760454,4.894,3828.2,3827.7,0.1304]
[1754589760658,4.894,3828.2,3827.3,0.4687]
[1754589760659,0.1304,3828.0,3827.5,0.1304]
[1754589760964,4.895,3827.9,3827.4,2.61273188]
[1754589761156,1.14189414,3827.8,3827.3,0.1304]
[1754589761385,0.898,3827.8,3827.3,0.1304]
[1754589761561,0.898,3827.7,3827.4,2.61268368]
[1754589761756,3.997,3827.6,3827.4,2.61268368]
[1754589761990,3.997,3827.6,3827.5,2.61267145]
[1754589762361,3.997,3827.6,3827.4,2.61273031]
[1754589762598,3.997,3827.6,3827.3,3.1304]
[1754589762599,3.997,3827.6,3827.3,2.74318432]
[1754589762793,0.898,3827.5,3827.2,2.61287183]
[1754589762964,0.898,3827.5,3827.4,2.61273971]
[1754589763498,18.497,3827.6,3827.2,2.74326692]
[1754589763499,18.497,3827.6,3827.5,2.61267145]
[1754589763698,18.497,3827.6,3827.4,2.61272441]
[1754589764902,18.497,3827.6,3827.5,2.61267145]
[1754589765061,18.497,3827.6,3827.2,0.1304]
[1754589765406,19.395,3827.6,3827.2,2.74325873]
[1754589765609,18.497,3827.6,3827.2,2.74325873]
[1754589765814,18.497,3827.6,3827.4,2.61273354]
[1754589766814,3.997,3827.6,3827.4,2.61273354]
[1754589767175,0.898,3827.5,3827.2,2.74321995]
[1754589767376,3.994,3827.4,3827.3,2.61280798]
[1754589769924,3.994,3827.4,3827.3,3.61712056]
[1754589770492,3.994,3827.4,3827.3,3.61812056]
[1754589771088,3.994,3827.4,3827.3,3.14942056]
[1754589771290,3.994,3827.4,3827.3,2.61380798]
[1754589772318,0.1304,3827.8,3827.7,2.61253494]
[1754589772488,3.991,3827.8,3827.7,0.1304]
[1754589772688,3.991,3827.8,3827.7,3.21163494]
[1754589773271,15.1016,3828.7,3828.2,2.61217329]
[1754589773423,4.23611845,3828.6,3827.9,0.55]
[1754589773623,0.24411845,3828.5,3828.4,2.6120147]
[1754589773843,0.71331845,3828.5,3828.4,2.6120147]
[1754589774064,4.23611845,3828.5,3828.4,2.6120147]
[1754589774369,3.992,3828.5,3828.4,2.6120147]
[1754589777170,0.002,3828.6,3828.5,2.61198902]
[1754589777468,0.898,3828.5,3828.4,2.74245725]
[1754589777784,3.99,3828.5,3828.4,2.74245725]
[1754589778863,0.002,3828.6,3828.5,6.16198902]
[1754589779052,0.002,3828.6,3828.5,6.95388902]
[1754589779933,0.002,3828.6,3828.5,6.65898902]
[1754589780338,0.002,3828.6,3828.5,6.95388902]
[1754589780545,0.002,3828.6,3828.5,20.0054629]
[1754589780844,0.002,3828.6,3828.5,22.67925492]
[1754589781269,0.002,3828.6,3828.5,9.33278104]
[1754589782799,0.002,3828.7,3828.6,6.1619208]
[1754589783076,1e-08,3828.7,3828.6,6.9538208]
[1754589785854,1e-08,3829.1,3829.0,6.16164794]
[1754589786055,1e-08,3829.1,3829.0,24.47014481]
[1754589786245,1e-08,3829.1,3829.0,25.26204481]
[1754589787258,0.002,3829.5,3829.4,3.16137515]
[1754589787462,0.002,3829.5,3829.4,10.14937515]
[1754589787686,1e-08,3829.5,3829.4,11.07167515]
[1754589787979,1e-08,3829.5,3829.4,12.70114647]
[1754589788178,0.002,3829.7,3829.6,3.16123877]
[1754589788179,1e-08,3829.7,3829.6,3.16123877]
[1754589788489,1e-08,3829.7,3829.6,23.20081265]
[1754589788645,1e-08,3829.7,3829.6,26.38169193]
[1754589789042,1e-08,3829.7,3829.6,26.51209193]
[1754589789950,1e-08,3829.7,3829.6,26.7115803]
[1754589791661,1e-08,3829.7,3829.6,26.2145803]
[1754589792168,1e-08,3829.7,3829.6,26.7115803]
[1754589792568,0.9237,3830.4,3830.0,2.61096605]
[1754589792569,0.002,3830.4,3830.0,2.61096605]
[1754589792789,0.002,3830.1,3830.0,23.19853993]
[1754589792996,0.002,3830.1,3830.0,23.69553993]
[1754589793194,0.002,3830.1,3830.0,23.32893993]
[1754589793392,0.9237,3830.1,3830.0,6.29136605]
[1754589794472,0.9237,3830.1,3830.0,5.74136605]
[1754589800810,0.4632,3830.1,3830.0,5.74136605]
[1754589800995,0.9237,3830.1,3830.0,5.74136605]
[1754589801196,0.9237,3830.1,3830.0,5.61096605]
[1754589801374,0.9237,3830.1,3830.0,5.74136605]
[1754589802681,0.9237,3830.1,3830.0,16.05246708]
[1754589802876,0.002,3830.1,3830.0,18.56091842]